bitfinex/quotes_ETHUSD_20241124
["timestamp","ask_amount","ask_price","bid_price","bid_amount"]
[1732456334675,0.0718393,3324.3,3323.7,3.0]
[1732456334855,8.89080716,3324.3,3323.7,3.990437]
[1732456335053,8.89080716,3324.3,3323.7,0.990437]
[1732456335054,3.00826,3324.2,3323.7,0.990437]
[1732456335259,3.00826,3324.2,3323.5,6.89573]
[1732456335565,0.0718393,3324.1,3323.5,6.89573]
[1732456335777,0.0718393,3324.1,3323.6,3.00876]
[1732456335933,0.0718393,3324.1,3323.9,3.0]
[1732456336128,3.00804,3324.5,3323.9,3.0]
[1732456336377,0.0718393,3324.0,3323.9,3.0]
[1732456336875,3.00804,3324.5,3323.9,3.0]
[1732456337049,0.0718393,3324.4,3323.9,3.0]
[1732456337259,3.0798993,3324.4,3323.9,3.0]
[1732456337446,3.0798993,3324.4,3323.7,3.0]
[1732456337968,3.00815,3324.3,3323.7,6.00868]
[1732456338648,0.0718393,3324.2,3323.7,6.00868]
[1732456338828,0.0718393,3324.2,3323.7,3.0]
[1732456339031,0.0718393,3324.2,3323.6,3.0]
[1732456339233,0.0718393,3324.2,3323.6,6.00871]
[1732456339463,0.0718393,3324.2,3323.9,3.00844]
[1732456339737,3.00822,3324.3,3323.6,6.00875]
[1732456340236,0.0718393,3324.2,3323.6,6.00875]
[1732456340631,0.0718393,3324.2,3323.5,0.8869]
[1732456340632,3.0084,3324.1,3323.5,0.8869]
[1732456340831,8.81896786,3324.3,3322.2,3.32308572]
[1732456340832,3.00875,3323.7,3323.2,0.8869]
[1732456341063,3.00875,3323.7,3322.9,3.89623]
[1732456341278,0.07157567,3323.6,3323.1,3.0092]
[1732456341437,11.82758786,3323.8,3322.9,0.91699102]
[1732456341438,8.81896786,3323.8,3322.9,0.91699102]
[1732456341639,0.07157567,3323.7,3323.5,3.00885]
[1732456341880,8.81896786,3323.8,3323.6,3.00878]
[1732456342040,0.07157567,3323.7,3323.6,6.00878]
[1732456342370,11.82731786,3324.1,3323.5,3.0]
[1732456342580,0.07157567,3323.7,3323.5,3.0]
[1732456342784,8.81896786,3324.1,3323.6,3.00873]
[1732456343282,3.00818,3324.3,3323.6,3.00873]
[1732456343283,11.82673786,3324.8,3324.0,3.00842]
[1732456343443,8.81896786,3324.8,3324.0,3.90915]
[1732456343642,3.00783,3324.7,3324.1,3.0]
[1732456343857,3.00803,3324.5,3324.0,0.9008]
[1732456344461,11.82673786,3324.8,3324.0,3.90921]
[1732456344632,11.82673786,3324.8,3324.1,3.0]
[1732456345357,3.00796,3324.6,3324.0,3.90921]
[1732456345564,3.00796,3324.6,3324.1,3.0]
[1732456346060,3.00799,3324.5,3323.7,3.0]
[1732456346371,3.00799,3324.5,3324.0,3.0]
[1732456346692,0.07082171,3324.4,3324.0,3.0]
[1732456346862,8.81896786,3324.6,3324.1,3.0]
[1732456347053,0.07082171,3324.5,3324.4,6.00804]
[1732456347254,0.07082171,3324.5,3324.4,3.0]
[1732456347493,8.81896786,3324.8,3324.5,3.0]
[1732456347657,0.07082171,3324.5,3324.2,3.0]
[1732456347854,11.82669786,3324.8,3324.4,3.0]
[1732456348057,11.82669786,3324.8,3324.2,3.0]
[1732456348058,3.07861171,3324.7,3324.2,3.0]
[1732456348265,3.07861171,3324.7,3324.0,6.00836]
[1732456348862,3.07861171,3324.7,3324.1,3.00831]
[1732456349064,3.07861171,3324.7,3324.2,3.0]
[1732456349606,3.00803,3324.5,3324.0,3.0]
[1732456349984,3.00803,3324.5,3323.8,0.874]
[1732456349985,8.81896786,3324.8,3323.8,0.874]
[1732456350296,3.00832,3324.2,3323.6,6.00871]
[1732456350502,3.0081,3324.4,3322.4,1.56462157]
[1732456350503,3.00862,3323.8,3323.2,0.874]
[1732456350709,8.81896786,3324.8,3323.3,3.00904]
[1732456350710,3.00858,3323.9,3323.3,3.00904]
[1732456350876,0.07082171,3323.7,3323.3,3.00904]
[1732456351205,3.00836,3324.1,3323.5,3.00885]
[1732456351377,0.07082171,3323.6,3323.5,3.00885]
[1732456351703,3.00815,3324.3,3323.5,3.00885]
[1732456351864,3.00815,3324.3,3323.8,3.0]
[1732456352300,3.00801,3324.5,3323.8,6.00854]
[1732456352601,8.81896786,3324.4,3324.1,3.0]
[1732456352764,8.81896786,3324.4,3324.1,6.00826]
[1732456352960,8.81896786,3324.4,3324.1,6.00831]
[1732456353177,3.00788,3324.6,3324.1,6.00827]
[1732456353565,3.00807,3324.4,3324.0,3.0]
[1732456353772,3.00788,3324.6,3324.0,6.00837]
[1732456354469,8.81896786,3324.8,3324.4,3.00797]
[1732456354673,8.81896786,3324.8,3324.5,3.0]
[1732456354871,8.81896786,3325.1,3324.6,3.00787]
[1732456355180,8.81896786,3325.3,3325.0,3.00748]
[1732456355769,8.81896786,3325.3,3324.9,3.0]
[1732456356005,11.82621786,3325.3,3324.9,3.0]
[1732456356310,3.00733,3325.2,3324.7,6.00778]
[1732456356604,8.81896786,3325.3,3324.9,3.0]
[1732456358109,3.00742,3325.2,3324.6,3.0]
[1732456358617,3.00733,3325.2,3324.6,6.00782]
[1732456358916,3.00733,3325.3,3324.6,3.0]
[1732456359118,3.00698,3325.6,3325.0,3.00746]
[1732456359297,8.81896786,3325.5,3325.1,6.00741]
[1732456359675,8.81896786,3325.5,3325.2,3.00733]
[1732456360289,8.81896786,3326.2,3325.1,0.874]
[1732456360822,3.00679,3325.9,3325.2,3.00727]
[1732456361023,8.81896786,3325.8,3324.4,0.874]
[1732456361320,8.81896786,3325.8,3321.2,6.18137165]
[1732456361321,3.00781,3324.7,3323.8,3.00859]
[1732456361477,8.81896786,3324.6,3323.6,0.8459]
[1732456361678,0.07104012,3324.5,3324.2,3.00823]
[1732456361920,0.07104012,3324.5,3323.6,0.8459]
[1732456362128,3.00829,3324.2,3323.6,0.8459]
[1732456362287,0.07104012,3324.5,3323.2,0.8459]
[1732456362288,3.0087,3323.7,3323.2,0.8459]
[1732456362783,3.00879,3323.6,3323.2,0.8459]
[1732456362983,0.07104012,3323.6,3323.2,0.8459]
[1732456363405,8.81896786,3323.8,3323.2,0.8459]
[1732456363606,0.07104012,3323.5,3323.2,3.8459]
[1732456363838,8.81896786,3323.8,3323.2,3.8459]
[1732456364043,0.07104012,3323.4,3323.2,0.8459]
[1732456364708,3.00884,3323.6,3322.9,0.8459]
[1732456364709,3.00894,3323.5,3322.9,0.8459]
[1732456364928,0.07107722,3323.4,3322.9,0.8459]
[1732456365129,0.07107722,3323.4,3323.0,3.0]
[1732456366007,6.01768,3323.6,3323.0,3.0]
[1732456366348,3.00889,3323.5,3323.0,3.0]
[1732456366508,3.07996722,3323.5,3323.0,3.0]
[1732456367203,3.0091,3323.3,3322.9,0.8459]
[1732456367408,3.00923,3323.1,3322.7,3.0]
[1732456367643,8.81896786,3323.7,3322.7,3.0]
[1732456367939,8.81896786,3323.7,3322.9,3.00941]
[1732456367940,3.00884,3323.6,3322.9,3.00941]
[1732456368140,0.07107722,3323.6,3323.0,3.0]
[1732456368306,0.07107722,3323.6,3323.0,0.8459]
[1732456368513,0.07107722,3323.6,3323.4,3.0]
[1732456368747,0.07107722,3323.6,3323.2,3.0]
[1732456368950,0.07107722,3323.6,3323.2,6.00912]
[1732456370537,0.07107722,3323.6,3323.4,3.0]
[1732456370959,3.00862,3323.8,3323.4,3.0]
[1732456371291,0.07107722,3323.5,3323.4,3.0]
[1732456371570,0.07107722,3323.5,3323.4,6.0089]
[1732456371775,11.82739786,3324.0,3323.4,6.0089]
[1732456372095,0.07107722,3323.5,3323.4,3.0]
[1732456372374,0.07078873,3323.5,3323.4,6.0089]
[1732456372837,3.00856,3323.9,3323.3,3.009]
[1732456373037,0.07078873,3323.5,3323.4,3.0]
[1732456373236,3.00884,3323.6,3323.1,3.0]
[1732456373477,0.07078873,3323.5,3323.1,3.0]
[1732456373632,8.88975659,3323.5,3323.1,3.0]
[1732456374370,8.88975659,3323.5,3323.4,3.0]
[1732456374575,8.88975659,3323.5,3323.3,3.0]
[1732456374737,0.07078873,3323.5,3323.4,6.00896]
[1732456374946,3.00816,3324.3,3323.6,3.00878]
[1732456375248,3.00826,3324.2,3323.6,3.00872]
[1732456375455,3.00812,3324.4,3323.8,3.00854]
[1732456375656,8.81896786,3324.3,3323.8,3.00854]
[1732456376174,14.83535786,3324.3,3323.6,3.00872]
[1732456376482,11.82711786,3324.3,3323.6,3.00872]
[1732456376776,3.07871138,3324.2,3323.7,3.00868]
[1732456377078,3.07871138,3324.2,3323.6,3.00877]
[1732456377380,3.07871138,3324.2,3323.6,3.00872]
[1732456377885,3.07871138,3324.2,3323.7,3.00868]
[1732456378378,3.07871138,3324.2,3323.5,3.0]
[1732456378561,3.07871138,3324.2,3323.6,3.00875]
[1732456378770,3.07871138,3324.2,3323.7,3.00868]
[1732456379181,3.00844,3324.0,3323.5,3.0]
[1732456379680,0.07047138,3323.9,3323.5,3.0]
[1732456379885,0.07047138,3323.9,3323.3,3.0]
[1732456380037,3.00861,3323.8,3323.3,3.0]
[1732456380239,3.00842,3324.0,3323.0,0.8459]
[1732456380440,3.00883,3323.6,3323.0,3.00932]
[1732456380672,3.00865,3323.8,3323.2,3.00908]
[1732456380885,0.07047138,3323.5,3323.3,3.0]
[1732456381034,3.00865,3323.8,3323.3,3.0]
[1732456381238,0.07047138,3323.4,3323.3,6.00905]
[1732456381467,11.82747786,3323.9,3323.4,3.83502]
[1732456382656,14.83606786,3323.9,3323.4,0.8261]
[1732456382976,11.82747786,3323.9,3323.4,0.8261]
[1732456383181,11.82747786,3323.9,3323.4,3.8261]
[1732456383485,11.82747786,3323.9,3323.4,6.835]
[1732456383839,8.81896786,3323.9,3323.4,6.835]
[1732456384163,11.82750786,3323.9,3323.4,6.835]
[1732456384562,8.81896786,3324.0,3323.1,3.0]
[1732456384778,3.00896,3323.5,3323.0,6.00931]
[1732456384947,3.00896,3323.5,3322.8,3.8261]
[1732456385144,3.00908,3323.3,3322.8,3.0]
[1732456385349,3.00928,3323.1,3322.7,3.0]
[1732456386774,3.00942,3322.9,3322.2,3.01005]
[1732456387001,3.00942,3322.9,3322.4,3.00985]
[1732456387304,3.00934,3323.0,3322.5,3.00978]
[1732456387663,8.81896786,3323.4,3322.2,3.01]
[1732456387664,3.00957,3322.8,3322.2,3.01]
[1732456387895,8.81896786,3323.3,3322.3,3.00987]
[1732456387896,3.00938,3323.0,3322.3,3.00987]
[1732456388109,6.01879,3323.0,3322.4,6.00985]
[1732456388272,8.81896786,3323.3,3322.4,6.00985]
[1732456388479,3.00914,3323.2,3322.6,3.0]
[1732456388681,8.81896786,3323.3,3322.5,3.0]
[1732456388888,3.00942,3322.9,3322.5,3.0]
[1732456389201,6.01856,3323.1,3322.5,6.00976]
[1732456389380,3.00925,3323.1,3322.5,3.00975]
[1732456389582,3.00932,3323.0,3322.6,3.0]
[1732456389795,8.81896786,3323.3,3322.4,3.0]
[1732456389796,3.0095,3322.9,3322.4,3.0]
[1732456390117,3.0095,3322.9,3322.1,3.8362]
[1732456390118,3.00961,3322.7,3322.2,6.01003]
[1732456390272,3.00961,3322.7,3322.2,3.0]
[1732456390471,8.81896786,3323.3,3322.0,3.0]
[1732456390666,6.01967,3322.5,3321.9,3.01028]
[1732456390907,11.82877786,3322.5,3321.8,0.8261]
[1732456391219,3.00996,3322.3,3321.8,0.8261]
[1732456391523,3.01025,3322.0,3321.5,0.7878]
[1732456391865,3.01025,3322.0,3321.2,3.35126463]
[1732456391866,3.01042,3321.8,3321.2,3.01093]
[1732456392172,3.01042,3321.8,3321.0,6.02221]
[1732456392385,0.06996004,3321.7,3321.1,3.01104]
[1732456392580,0.06996004,3321.7,3321.2,3.01095]
[1732456393638,0.06996004,3321.7,3321.1,3.0]
[1732456393639,3.08048004,3321.7,3321.1,3.0]
[1732456393790,3.01059,3321.6,3320.9,0.7878]
[1732456393989,3.01088,3321.3,3320.4,3.01168]
[1732456394188,3.01088,3321.3,3320.1,3.01193]
[1732456394189,3.01104,3321.2,3320.5,0.7878]
[1732456394400,3.08066997,3321.2,3320.5,0.7878]
[1732456395083,0.06962997,3321.2,3320.5,0.7878]
[1732456395626,3.08060997,3321.2,3320.5,0.7878]
[1732456395920,3.01114,3321.0,3320.5,0.7878]
[1732456396332,0.06873477,3320.9,3320.5,0.7878]
[1732456396895,3.08001477,3320.9,3320.5,0.7878]
[1732456397814,3.01142,3320.7,3320.5,0.7878]
[1732456398013,3.01128,3320.9,3320.2,3.0]
[1732456398230,3.01128,3320.9,3320.1,0.7878]
[1732456398231,0.06873477,3320.6,3320.1,3.7878]
[1732456398407,3.01134,3320.8,3320.1,6.79974]
[1732456398605,0.06873477,3320.5,3320.1,6.79974]
[1732456398905,0.06873477,3320.5,3320.1,3.7878]
[1732456399104,11.82999786,3321.2,3320.5,3.0]
[1732456399303,3.01114,3321.0,3320.5,3.0]
[1732456399501,3.01125,3320.9,3320.3,3.0]
[1732456400024,3.01148,3320.7,3320.1,3.7878]
[1732456400327,3.01178,3320.3,3320.0,0.00151]
[1732456400533,3.01182,3320.3,3320.0,0.00151]
[1732456401003,3.01163,3320.5,3320.0,0.00151]
[1732456401208,3.01174,3320.4,3320.0,0.00151]
[1732456401438,3.01163,3320.5,3320.0,0.00151]
[1732456401615,3.01177,3320.3,3320.0,0.00151]
[1732456401932,3.01163,3320.5,3320.0,0.00151]
[1732456402242,3.01153,3320.6,3320.0,3.01353]
[1732456402556,3.01153,3320.6,3320.1,3.0]
[1732456402717,3.01153,3320.6,3320.1,6.01195]
[1732456402894,3.01153,3320.6,3320.1,3.0]
[1732456403097,3.01153,3320.6,3320.0,0.00151]
[1732456403347,3.01156,3320.6,3320.0,0.00151]
[1732456403843,8.81896786,3320.6,3320.0,0.00151]
[1732456404000,11.83051786,3320.6,3320.0,0.00151]
[1732456404202,14.84210786,3320.6,3320.0,3.00151]
[1732456404414,3.01162,3320.5,3320.0,3.00151]
[1732456405232,3.01168,3320.4,3320.0,3.00151]
[1732456405821,3.01168,3320.4,3320.0,0.00151]
[1732456406028,3.01191,3320.2,3320.0,0.00151]
[1732456406848,3.07990447,3320.1,3320.0,0.00151]
[1732456407333,0.06795447,3320.1,3320.0,0.00151]
[1732456407726,3.01187,3320.2,3320.0,0.00151]
[1732456408038,0.06795447,3320.1,3320.0,0.00151]
[1732456408215,3.01178,3320.3,3320.0,0.00151]
[1732456408425,0.06795447,3320.1,3320.0,0.00151]
[1732456408628,3.0117,3320.4,3320.0,0.00151]
[1732456408954,0.06795447,3320.1,3320.0,0.00151]
[1732456409110,3.01179,3320.3,3320.0,0.00151]
[1732456409313,0.06795447,3320.1,3320.0,0.00151]
[1732456409646,3.01179,3320.3,3320.0,0.00151]
[1732456409812,3.07990447,3320.1,3320.0,0.00151]
[1732456410013,8.81896786,3320.2,3320.0,0.00151]
[1732456410209,0.06795447,3320.1,3320.0,0.00151]
[1732456411012,3.07990447,3320.1,3320.0,0.00151]
[1732456412753,11.89887233,3320.1,3320.0,0.00151]
[1732456415244,8.88692233,3320.1,3320.0,0.00151]
[1732456415455,8.88692233,3320.1,3320.0,6.01355]
[1732456415606,8.88692233,3320.1,3320.0,6.83335]
[1732456416520,0.06795447,3320.1,3320.0,7.817892]
[1732456416748,8.81896786,3321.2,3321.0,0.8198]
[1732456417056,3.01051,3321.7,3321.1,3.01105]
[1732456417057,8.81896786,3321.6,3321.1,3.01105]
[1732456417470,8.81896786,3321.8,3321.5,3.01061]
[1732456417654,8.81896786,3322.1,3321.7,3.01049]
[1732456417952,11.82922786,3322.0,3321.6,3.0]
[1732456418257,3.01048,3321.8,3321.3,3.0]
[1732456418454,3.0105,3321.7,3321.1,6.01102]
[1732456418756,3.37887922,3321.8,3321.1,3.0]
[1732456418917,0.36846922,3321.8,3321.2,3.01095]
[1732456419123,8.81896786,3322.0,3321.6,3.0]
[1732456419455,8.81896786,3322.0,3321.5,3.0]
[1732456419663,11.82927786,3322.0,3321.5,3.0]
[1732456419836,3.01057,3321.7,3321.2,3.0]
[1732456420022,3.01035,3321.9,3321.3,3.01079]
[1732456420220,8.81896786,3322.0,3321.2,0.38198]
[1732456420427,8.81896786,3322.0,3321.7,3.01042]
[1732456420729,8.81896786,3322.0,3321.8,3.0]
[1732456420956,8.81896786,3322.6,3321.9,3.0]
[1732456421166,8.81896786,3322.6,3322.4,3.00981]
[1732456421337,3.00918,3323.2,3322.4,3.00981]
[1732456421338,8.81896786,3322.9,3322.6,3.00969]
[1732456421531,8.81896786,3322.9,3322.4,3.77399]
[1732456421532,8.81896786,3322.9,3322.4,0.7642]
[1732456421752,11.82844786,3322.9,3322.4,0.7642]
[1732456422824,8.81896786,3322.9,3322.5,3.0]
[1732456423444,8.81896786,3323.2,3322.7,3.00959]
[1732456423773,3.00909,3323.3,3322.4,0.7642]
[1732456423774,8.81896786,3323.3,3322.4,0.7642]
[1732456423951,3.00876,3323.7,3323.0,3.00924]
[1732456423952,8.81896786,3323.6,3323.0,3.00924]
[1732456424147,8.81896786,3323.6,3322.7,6.00955]
[1732456424148,3.00899,3323.4,3322.7,6.00955]
[1732456424446,3.00917,3323.2,3322.3,3.00987]
[1732456424650,0.06349226,3323.3,3322.1,0.7642]
[1732456424849,8.81896786,3323.6,3323.1,3.00923]
[1732456425063,0.06349226,3323.2,3323.1,3.00923]
[1732456425258,8.81896786,3323.5,3323.1,3.0]
[1732456425459,8.81896786,3323.5,3323.3,3.00899]
[1732456427104,11.82730786,3324.1,3323.4,3.00896]
[1732456427274,11.82730786,3324.1,3323.5,3.00886]
[1732456427454,11.82740786,3324.0,3323.3,3.00899]
[1732456427661,11.82740786,3324.0,3323.1,3.0]
[1732456427858,11.82740786,3324.0,3323.3,3.00902]
[1732456428056,11.82740786,3324.0,3323.4,3.00896]
[1732456428794,3.00851,3323.9,3323.3,3.00899]
[1732456429443,3.0086,3323.8,3322.9,0.7642]
[1732456429643,11.82738786,3324.0,3322.9,0.7642]
[1732456429952,11.82738786,3324.0,3323.4,3.00893]
[1732456430484,8.81896786,3324.6,3324.5,3.00797]
[1732456430786,3.00641,3326.3,3324.0,3.77262]
[1732456430787,11.82594786,3325.6,3325.0,3.0075]
[1732456430993,0.31320073,3326.5,3325.2,3.00726]
[1732456430994,8.81896786,3325.5,3325.2,3.00726]
[1732456431159,8.81896786,3325.5,3325.3,3.00721]
[1732456431354,8.81896786,3325.5,3325.2,3.00733]
[1732456431598,8.81896786,3325.5,3325.1,3.0]
[1732456432099,8.81896786,3325.5,3325.3,3.00722]
[1732456432592,8.81896786,3325.5,3325.0,3.00748]
[1732456432803,8.81896786,3325.5,3324.9,3.0]
[1732456433006,11.82604786,3325.5,3325.0,3.0]
[1732456433294,8.81896786,3325.5,3325.0,6.00748]
[1732456433652,0.0643536,3325.4,3324.9,3.00759]
[1732456433858,0.0643536,3325.4,3325.0,6.00749]
[1732456434082,0.0643536,3325.4,3325.3,3.00724]
[1732456434297,8.81896786,3325.6,3325.4,3.00713]
[1732456434647,8.81896786,3325.6,3325.3,3.00724]
[1732456434784,8.81896786,3325.6,3325.5,3.00706]
[1732456434954,8.81896786,3326.0,3325.6,3.0]
[1732456435160,0.06519695,3325.9,3325.5,3.7642]
[1732456435354,0.06519695,3325.9,3325.5,6.77126]
[1732456435905,0.06519695,3325.9,3325.6,3.00696]
[1732456436203,0.06519695,3325.9,3325.5,3.7642]
[1732456436352,0.06519695,3325.9,3325.5,0.7642]
[1732456436664,0.06519695,3325.9,3325.6,6.00697]
[1732456437790,0.06519695,3325.9,3325.6,3.0]
[1732456437970,0.06519695,3325.9,3325.5,0.7642]
[1732456438276,0.06519695,3325.9,3325.5,3.7642]
[1732456440301,0.06530849,3325.4,3325.3,6.00724]
[1732456440791,3.00663,3326.0,3325.4,3.0]
[1732456440792,3.00676,3325.9,3325.4,3.0]
[1732456441382,3.00713,3325.5,3325.0,3.0]
[1732456441586,3.00718,3325.4,3324.8,0.7642]
[1732456441880,3.00713,3325.5,3324.8,6.77187]
[1732456442090,3.00667,3326.0,3324.2,3.0082]
[1732456442091,0.55,3326.0,3324.4,3.00805]
[1732456442411,0.55,3326.2,3324.5,3.0]
[1732456442555,3.00703,3325.6,3325.0,3.0]
[1732456442761,3.00712,3325.5,3325.0,3.0]
[1732456442983,3.00703,3325.6,3325.0,3.0]
[1732456443297,3.00703,3325.6,3324.4,0.792]
[1732456443298,3.00748,3325.1,3324.7,3.0]
[1732456443594,0.55,3326.2,3324.0,0.792]
[1732456443595,3.00796,3324.6,3324.0,0.792]
[1732456443795,8.81896786,3324.5,3323.7,0.792]
[1732456444004,3.0085,3324.0,3323.4,3.00894]
[1732456444169,3.0085,3324.0,3323.4,0.380094]
[1732456444385,3.0085,3324.0,3323.3,0.792]
[1732456444584,3.00863,3323.8,3323.3,0.792]
[1732456444761,8.81896786,3324.3,3322.9,3.80141]
[1732456444956,8.81896786,3324.2,3323.0,0.300941]
[1732456445195,8.81896786,3324.2,3321.3,3.11079]
[1732456445196,3.00944,3322.9,3322.4,0.792]
[1732456445394,8.81896786,3323.0,3322.5,0.380193]
[1732456445701,8.81896786,3322.9,3321.9,0.792]
[1732456445908,8.81896786,3322.9,3322.5,3.00972]
[1732456446138,8.81896786,3322.9,3322.0,3.04028887]
[1732456446139,8.81896786,3322.9,3322.8,0.792]
[1732456446353,8.81896786,3322.9,3322.4,0.792]
[1732456446521,8.81896786,3322.9,3322.5,3.00978]
[1732456446720,3.00961,3322.7,3322.4,0.792]
[1732456446909,3.0096,3322.7,3322.1,3.0101]
[1732456447247,8.81896786,3322.9,3322.5,3.0]
[1732456447905,8.81896786,3322.9,3322.5,6.00972]
[1732456448234,11.82841786,3322.9,3322.6,0.901952]
[1732456448445,11.82841786,3322.9,3322.3,6.00994]
[1732456448446,8.81896786,3322.9,3322.5,3.0]
[1732456448606,8.81896786,3322.9,3322.1,3.602043]
[1732456448607,3.0096,3322.7,3322.1,3.602043]
[1732456448807,8.81896786,3322.8,3322.5,3.0]
[1732456449008,11.82847786,3322.8,3322.3,3.0]
[1732456449211,8.81896786,3322.8,3322.3,3.0]
[1732456449517,8.81896786,3322.8,3322.3,6.00994]
[1732456449745,11.82848786,3322.8,3322.3,0.600994]
[1732456449948,3.0096,3322.7,3322.3,3.0]
[1732456450148,3.00977,3322.6,3322.1,3.0]
[1732456450476,3.01014,3322.1,3321.5,3.80261]
[1732456450636,8.81896786,3322.1,3321.5,1.38211353]
[1732456450979,8.81896786,3322.1,3321.5,0.792]
[1732456451279,8.81896786,3322.1,3321.9,3.01025]
[1732456451479,8.81896786,3322.1,3322.0,3.01023]
[1732456451779,8.81896786,3322.1,3322.0,6.01023]
[1732456451940,8.81896786,3322.1,3322.0,6.611253]
[1732456453101,8.81896786,3322.1,3322.0,0.601023]
[1732456453269,8.81896786,3322.1,3321.9,3.0]
[1732456453869,8.81896786,3322.1,3321.6,3.0]
[1732456454090,8.81896786,3322.1,3321.9,3.0]
[1732456454297,8.81896786,3322.1,3321.6,6.01051]
[1732456454600,8.81896786,3322.1,3321.6,0.981316]
[1732456454774,3.10867,3323.8,3322.0,6.01023]
[1732456454775,3.00959,3322.8,3322.0,6.01023]
[1732456454969,8.81896786,3322.7,3322.0,6.01023]
[1732456455288,8.81896786,3322.7,3322.3,3.0]
[1732456455492,8.81896786,3322.7,3322.4,3.0]
[1732456455699,3.0097,3322.6,3322.0,6.01021]
[1732456455910,8.81896786,3322.7,3322.1,3.01011]
[1732456456199,8.81896786,3322.7,3322.2,6.01005]
[1732456456393,8.81896786,3322.7,3322.0,3.0]
[1732456456599,8.81896786,3322.7,3322.2,3.0]
[1732456456958,0.06315865,3322.6,3322.2,6.00998]
[1732456458283,0.06315865,3322.6,3322.4,3.0]
[1732456458807,0.06315865,3322.6,3322.5,3.0]
[1732456459013,0.06315865,3322.6,3322.4,3.0]
[1732456459306,0.06315865,3322.6,3322.4,6.00986]
[1732456459470,0.06315865,3322.6,3322.4,6.911836]
[1732456460170,0.06315865,3322.6,3322.5,6.00978]
[1732456460369,8.81896786,3323.4,3322.5,6.83187584]
[1732456460573,8.81896786,3324.0,3323.4,3.0]
[1732456460873,0.1,3325.2,3323.2,0.792]
[1732456460874,8.81896786,3323.9,3323.7,6.00862]
[1732456461071,8.81896786,3323.9,3323.6,3.0]
[1732456461304,8.81896786,3323.9,3323.8,3.0086]
[1732456461472,8.81896786,3323.9,3323.8,6.0086]
[1732456462086,8.81896786,3323.9,3323.3,3.009]
[1732456462087,8.81896786,3323.9,3323.7,3.0]
[1732456462271,8.81896786,3323.9,3323.8,3.0]
[1732456462793,8.81896786,3323.9,3323.8,6.0086]
[1732456463177,8.81896786,3323.9,3323.8,3.0]
[1732456463419,3.00802,3324.5,3323.2,0.792]
[1732456463579,3.00802,3324.5,3323.9,3.0]
[1732456463978,3.00802,3324.5,3323.9,6.0085]
[1732456464220,8.81896786,3324.4,3323.5,3.0]
[1732456464420,3.00833,3324.2,3323.5,3.00885]
[1732456464628,3.00844,3324.0,3323.6,3.0]
[1732456464889,3.00824,3324.2,3321.8,3.0]
[1732456465091,3.00888,3323.5,3322.7,3.0]
[1732456465271,3.00908,3323.3,3322.7,3.0]
[1732456465670,8.81896786,3323.4,3322.9,3.00934]
[1732456465986,8.81896786,3323.4,3323.0,3.0]
[1732456466670,0.06318761,3323.3,3323.0,3.0]
[1732456468143,0.06318761,3323.3,3322.8,3.0]
[1732456468344,3.07229761,3323.3,3322.8,3.0]
[1732456468613,0.06318761,3323.3,3322.8,6.00945]
[1732456469078,3.07224761,3323.3,3322.8,3.0]
[1732456469285,0.06318761,3323.3,3323.0,3.0]
[1732456469482,0.06318761,3323.3,3323.0,6.910175]
[1732456469685,0.06318761,3323.3,3323.2,6.83674]
[1732456469901,3.0,3325.3,3324.0,3.00834]
[1732456469902,3.00786,3324.7,3324.0,3.00834]
[1732456470200,11.82685786,3324.6,3324.1,3.0]
[1732456470361,8.81896786,3324.6,3324.1,3.0]
[1732456470562,3.00802,3324.5,3323.9,3.0]
[1732456470854,3.00802,3324.5,3324.0,3.0084]
[1732456471088,3.00807,3324.4,3323.9,3.0]
[1732456472183,3.00816,3324.3,3323.7,6.00868]
[1732456472359,11.82687786,3324.6,3323.9,3.0]
[1732456472755,3.00832,3324.2,3323.7,3.0]
[1732456473084,8.81896786,3324.6,3323.9,3.0]
[1732456473085,3.00809,3324.4,3323.9,3.0]
[1732456473295,3.00809,3324.4,3323.7,3.0]
[1732456473461,3.00842,3324.0,3323.5,3.0]
[1732456473801,3.00887,3323.5,3322.8,0.8276]
[1732456473958,3.00907,3323.3,3322.8,0.8276]
[1732456474290,3.00924,3323.1,3322.8,0.8276]
[1732456474491,3.00949,3322.9,3322.3,0.8276]
[1732456474647,3.00949,3322.9,3322.4,3.00987]
[1732456474967,11.82828786,3323.0,3322.4,3.00987]
[1732456475174,11.82828786,3323.0,3322.5,3.00975]
[1732456475570,8.81896786,3323.0,3322.9,3.00941]
[1732456475790,8.81896786,3323.0,3322.9,3.0]
[1732456476346,8.88036339,3323.0,3322.9,6.00941]
[1732456476987,8.88036339,3323.0,3322.7,6.00954]
[1732456477963,8.88036339,3323.0,3322.5,3.694468]
[1732456477964,8.88036339,3323.0,3322.5,3.00974]
[1732456478286,8.88036339,3323.0,3322.3,3.00991]
[1732456478493,3.00943,3322.9,3322.3,3.00991]
[1732456478649,3.00943,3322.9,3322.0,0.8276]
[1732456478650,3.00989,3322.4,3322.0,0.8276]
[1732456478851,3.00989,3322.4,3321.8,3.01038]
[1732456478852,8.81896786,3322.3,3321.8,3.01038]
[1732456479081,8.8802681,3322.3,3321.9,3.01025]
[1732456479250,8.8802681,3322.3,3321.8,3.01035]
[1732456479451,11.8902581,3322.3,3321.6,3.01059]
[1732456479683,11.8902581,3322.3,3321.9,3.01025]
[1732456479684,8.8802681,3322.3,3321.9,3.01025]
[1732456480272,11.8902381,3322.3,3321.7,3.01047]
[1732456480587,8.8802681,3322.3,3322.0,3.0]
[1732456480901,8.8802681,3322.3,3321.8,6.01039]
[1732456481390,8.8802681,3322.3,3322.0,3.0]
[1732456481580,8.8802681,3322.3,3321.8,3.0]